bitfinex-derivatives/quotes_BTCF0:USTF0_20241116
["timestamp","ask_amount","ask_price","bid_price","bid_amount"]
[1731776200936,0.055136,90653.0,90649.0,0.11030161]
[1731776201624,0.055137,90650.0,90649.0,0.11030161]
[1731776202329,0.05514,90646.0,90642.0,0.415942]
[1731776202635,0.46592868,90659.0,90643.0,0.110315]
[1731776202636,0.055141,90645.0,90643.0,0.110315]
[1731776203540,0.08744,90655.0,90643.0,0.110315]
[1731776203836,0.055141,90644.0,90643.0,0.110315]
[1731776205530,0.08369144,90644.0,90643.0,0.110315]
[1731776205730,0.055141,90644.0,90643.0,0.110315]
[1731776206035,0.055138,90650.0,90643.0,0.110315]
[1731776206338,0.11680691,90653.0,90644.0,0.10512868]
[1731776206541,0.055137,90651.0,90649.0,0.055138]
[1731776207026,0.055137,90651.0,90650.0,0.11031865]
[1731776207430,0.08744,90653.0,90650.0,0.16545565]
[1731776207635,0.08744,90653.0,90651.0,0.055137]
[1731776208137,0.08744,90653.0,90652.0,0.12065533]
[1731776208341,0.08744,90653.0,90652.0,0.17579133]
[1731776208534,0.004,90662.0,90652.0,0.12065533]
[1731776208732,0.004,90662.0,90653.0,0.01034155]
[1731776209040,0.004,90662.0,90657.0,0.055133]
[1731776209041,0.055131,90660.0,90657.0,0.055133]
[1731776209339,0.055131,90660.0,90658.0,0.01034155]
[1731776209541,0.055131,90660.0,90659.0,0.01034155]
[1731776209747,0.004,90662.0,90660.0,0.055131]
[1731776210039,0.004,90662.0,90661.0,0.06547255]
[1731776210743,0.03345408,90665.0,90661.0,0.17577295]
[1731776210941,0.05513,90663.0,90661.0,0.17577295]
[1731776211136,0.05513,90662.0,90661.0,0.1103004]
[1731776211531,0.05513,90662.0,90658.0,0.3608]
[1731776211734,0.05513,90662.0,90659.0,0.12064041]
[1731776211935,0.05513,90662.0,90660.0,0.01034043]
[1731776212235,0.05513,90662.0,90658.0,0.3608]
[1731776212236,0.004,90665.0,90664.0,0.055129]
[1731776212435,0.004,90665.0,90664.0,0.06546945]
[1731776213339,0.004,90665.0,90664.0,0.17577046]
[1731776213545,0.059126,90669.0,90664.0,0.17577046]
[1731776213746,0.059126,90669.0,90665.0,0.01034045]
[1731776213933,0.059126,90669.0,90666.0,0.01034045]
[1731776214139,0.059126,90669.0,90667.0,0.01034045]
[1731776214333,0.059126,90669.0,90668.0,0.01034045]
[1731776214941,0.059126,90669.0,90668.0,0.12063355]
[1731776215532,0.004,90669.0,90668.0,0.17575955]
[1731776216641,0.004,90669.0,90668.0,0.1654191]
[1731776217033,0.004,90669.0,90668.0,0.17575863]
[1731776217641,0.004,90669.0,90668.0,0.12063263]
[1731776218437,0.004,90669.0,90668.0,0.1102931]
[1731776219440,0.059125,90670.0,90668.0,0.1102931]
[1731776220538,0.3608,90669.0,90668.0,0.1102931]
[1731776220737,0.415926,90669.0,90668.0,0.01033967]
[1731776221138,0.055128,90665.0,90655.0,0.055134]
[1731776221345,0.055128,90665.0,90656.0,0.06547364]
[1731776221646,0.055128,90665.0,90655.0,0.11029188]
[1731776221946,0.3608,90669.0,90667.0,0.055127]
[1731776222150,0.3608,90669.0,90668.0,0.01034005]
[1731776222443,0.004,90670.0,90668.0,0.01034005]
[1731776222745,0.004,90670.0,90669.0,0.01034005]
[1731776223138,0.004,90670.0,90669.0,0.37114005]
[1731776223644,0.004,90670.0,90669.0,0.48143072]
[1731776223845,0.004,90670.0,90669.0,0.12063072]
[1731776225446,0.00565475,90673.0,90669.0,0.12063072]
[1731776225652,0.00565475,90673.0,90670.0,0.01034005]
[1731776225842,0.00565475,90673.0,90671.0,0.01034005]
[1731776226042,0.00565475,90673.0,90672.0,0.01034005]
[1731776226243,0.00565475,90673.0,90672.0,0.12063072]
[1731776226640,0.00565475,90673.0,90672.0,0.01034005]
[1731776226844,0.00565475,90673.0,90672.0,0.12062707]
[1731776228646,0.00565475,90673.0,90672.0,0.11028702]
[1731776228847,0.00565475,90673.0,90672.0,0.12062691]
[1731776229055,0.00565475,90673.0,90672.0,0.01033989]
[1731776229256,0.00565475,90673.0,90672.0,0.12062691]
[1731776230353,0.36645475,90673.0,90672.0,0.01033989]
[1731776230552,0.055134,90656.0,90651.0,0.32748914]
[1731776230755,0.3608,90655.0,90646.0,0.32748914]
[1731776230962,0.055138,90650.0,90644.0,0.32748914]
[1731776231165,0.055138,90650.0,90647.0,0.11028702]
[1731776231347,0.055138,90650.0,90648.0,0.01034078]
[1731776231542,0.055138,90650.0,90647.0,0.16542602]
[1731776231543,0.055138,90650.0,90649.0,0.01034078]
[1731776232055,0.055138,90650.0,90648.0,0.11031804]
[1731776232356,0.055138,90650.0,90647.0,0.055139]
[1731776232553,0.055138,90650.0,90648.0,0.12065746]
[1731776232748,0.055138,90650.0,90648.0,0.11031561]
[1731776234255,0.055138,90650.0,90649.0,0.01034196]
[1731776234460,0.055138,90650.0,90649.0,0.12065757]
[1731776234957,0.055138,90650.0,90649.0,0.01034196]
[1731776235154,0.055138,90650.0,90649.0,0.12065757]
[1731776236159,0.055138,90650.0,90649.0,0.11031561]
[1731776236452,0.055138,90650.0,90636.0,0.43261782]
[1731776236453,0.02967259,90651.0,90639.0,0.055144]
[1731776236656,0.055142,90643.0,90640.0,0.0103432]
[1731776236860,0.055142,90643.0,90641.0,0.0103432]
[1731776237059,0.055142,90643.0,90642.0,0.0103432]
[1731776237552,0.055142,90643.0,90642.0,0.1206582]
[1731776238148,0.059142,90643.0,90642.0,0.01034341]
[1731776238349,0.055149,90631.0,90629.0,0.32748914]
[1731776238662,0.10512868,90636.0,90632.0,0.11032352]
[1731776238866,0.055147,90635.0,90633.0,0.01034365]
[1731776239162,0.055147,90635.0,90634.0,0.01034365]
[1731776239360,0.055147,90635.0,90634.0,0.12066717]
[1731776239547,0.055147,90635.0,90634.0,0.01034365]
[1731776239753,0.055147,90635.0,90634.0,0.12067691]
[1731776240160,0.055147,90635.0,90634.0,0.11033326]
[1731776240356,0.055147,90635.0,90634.0,0.12067732]
[1731776240559,0.08732,90638.0,90628.0,0.05680575]
[1731776240560,0.055148,90634.0,90628.0,0.05680575]
[1731776240865,0.08732,90638.0,90629.0,0.01034413]
[1731776241063,0.055149,90631.0,90630.0,0.01034413]
[1731776241859,0.08732,90638.0,90630.0,0.12068226]
[1731776242053,0.08732,90638.0,90630.0,0.11033813]
[1731776242250,0.055147,90634.0,90630.0,0.11033813]
[1731776242458,0.055148,90633.0,90628.0,0.05680575]
[1731776242654,0.08732,90638.0,90629.0,0.11033387]
[1731776242955,0.055149,90632.0,90629.0,0.11033387]
[1731776243352,0.055149,90632.0,90619.0,0.36136]
[1731776243353,0.055155,90622.0,90619.0,0.36136]
[1731776243553,0.055155,90622.0,90603.0,0.47941024]
[1731776243554,0.055155,90622.0,90609.0,0.055162]
[1731776243760,0.46592868,90630.0,90625.0,0.11033813]
[1731776243956,0.08736,90626.0,90611.0,0.0051]
[1731776244159,0.055155,90621.0,90610.0,0.055162]
[1731776244356,0.055156,90620.0,90610.0,0.16550013]
[1731776244551,0.055156,90620.0,90609.0,0.03410635]
[1731776244552,0.055156,90620.0,90612.0,0.055161]
[1731776244862,0.08736,90626.0,90611.0,0.11035639]
[1731776245065,0.055159,90614.0,90610.0,0.00550035]
[1731776245265,0.08736,90626.0,90607.0,0.39015951]
[1731776245459,0.05516,90614.0,90610.0,0.11035639]
[1731776245660,0.05516,90614.0,90611.0,0.00550366]
[1731776245865,0.05516,90614.0,90607.0,0.39015951]
[1731776246170,0.05516,90614.0,90611.0,0.00554173]
[1731776246368,0.38981363,90630.0,90610.0,0.10512868]
[1731776246557,0.38981363,90630.0,90607.0,0.39015951]
[1731776246558,0.059149,90632.0,90628.0,0.055151]
[1731776246753,0.004,90632.0,90625.0,0.10512868]
[1731776246960,0.004,90632.0,90629.0,0.11036004]
[1731776247267,0.004,90632.0,90625.0,0.10512868]
[1731776247463,0.055149,90631.0,90626.0,0.01034412]
[1731776247661,0.055149,90631.0,90630.0,0.11033813]
[1731776247857,0.004,90632.0,90627.0,0.01034412]
[1731776248062,0.004,90632.0,90611.0,0.055161]
[1731776248063,0.055158,90617.0,90611.0,0.055161]
[1731776248665,0.055158,90617.0,90616.0,0.11035578]
[1731776249270,0.3608,90627.0,90616.0,0.11035578]
[1731776249472,0.055154,90623.0,90616.0,0.11035578]
[1731776249775,0.055155,90622.0,90619.0,0.055156]
[1731776250359,0.055155,90622.0,90620.0,0.11035517]
[1731776251973,0.055155,90622.0,90614.0,0.055159]
[1731776252173,0.004,90618.0,90616.0,0.11034969]
[1731776252474,0.004,90618.0,90615.0,0.055159]
[1731776252875,0.004,90618.0,90617.0,0.11035456]
[1731776253083,0.004,90618.0,90615.0,0.055159]
[1731776253376,0.004,90618.0,90617.0,0.11035456]
[1731776253773,0.004,90618.0,90615.0,0.055159]
[1731776253984,0.004,90618.0,90617.0,0.11035517]
[1731776254275,0.004,90618.0,90615.0,0.055159]
[1731776254464,0.004,90618.0,90610.0,0.02976934]
[1731776254665,0.004,90618.0,90617.0,0.11035517]
[1731776254865,0.004,90618.0,90616.0,0.16028668]
[1731776255065,0.004,90618.0,90617.0,0.12069881]
[1731776255667,0.004,90618.0,90617.0,0.45177881]
[1731776255880,0.055149,90632.0,90624.0,0.055153]
[1731776256081,0.055148,90633.0,90625.0,0.01034485]
[1731776256267,0.055148,90633.0,90626.0,0.01034485]
[1731776256463,0.00010024,90640.0,90627.0,0.01034485]
[1731776256667,0.055144,90639.0,90629.0,0.10512868]
[1731776256874,0.055144,90639.0,90634.0,0.055147]
[1731776257267,0.00010024,90640.0,90635.0,0.01034378]
[1731776257268,0.055145,90638.0,90635.0,0.01034378]
[1731776257468,0.055145,90638.0,90634.0,0.055147]
[1731776257667,0.055145,90638.0,90635.0,0.01034369]
[1731776257881,0.055145,90638.0,90636.0,0.12067451]
[1731776258066,0.055145,90638.0,90634.0,0.055147]
[1731776258268,0.055145,90638.0,90635.0,0.0103436]
[1731776258565,0.00010024,90640.0,90632.0,0.3608]
[1731776258566,0.00010024,90640.0,90637.0,0.10512868]
[1731776258772,0.00010024,90640.0,90638.0,0.06548859]
[1731776258980,0.00010024,90640.0,90638.0,0.055145]
[1731776259280,0.00010024,90640.0,90639.0,0.0103434]
[1731776259469,0.00010024,90640.0,90639.0,0.38274417]
[1731776259880,0.00010024,90640.0,90639.0,0.12067483]
[1731776260075,0.00010024,90640.0,90639.0,0.38319706]
[1731776260480,0.00010024,90640.0,90639.0,0.12067483]
[1731776262885,0.00010024,90640.0,90639.0,0.14959472]
[1731776263779,0.00010024,90640.0,90639.0,0.54164496]
[1731776263982,0.00010024,90640.0,90639.0,0.12067483]
[1731776264179,0.00010024,90640.0,90639.0,0.11033143]
[1731776264488,0.00010024,90640.0,90635.0,0.32844772]
[1731776264686,0.055144,90639.0,90633.0,0.32844772]
[1731776264889,0.00010024,90640.0,90633.0,0.43877489]
[1731776264890,0.055145,90638.0,90633.0,0.43877489]
[1731776265281,0.055145,90638.0,90633.0,0.32844772]
[1731776265491,0.055145,90638.0,90634.0,0.11032717]
[1731776265684,0.055145,90638.0,90634.0,0.43877489]
[1731776266079,0.055145,90638.0,90633.0,0.32844772]
[1731776266282,0.055145,90638.0,90635.0,0.11033204]
[1731776266580,0.055145,90638.0,90636.0,0.01034306]
[1731776266781,0.055145,90638.0,90637.0,0.01034306]
[1731776267483,0.055145,90638.0,90637.0,0.1206751]
[1731776267785,0.055145,90638.0,90637.0,0.11033204]
[1731776268186,0.02976589,90640.0,90626.0,0.055152]
[1731776268187,0.055148,90634.0,90626.0,0.38359972]
[1731776268386,0.055148,90634.0,90626.0,0.055152]
[1731776268689,0.055148,90634.0,90627.0,0.80993049]
[1731776268890,0.055148,90633.0,90628.0,0.33879176]
[1731776269088,0.055149,90632.0,90629.0,0.01034404]
[1731776269283,0.055149,90632.0,90630.0,0.01034404]
[1731776269485,0.055149,90632.0,90631.0,0.01034404]
[1731776270027,0.055145,90638.0,90634.0,0.055147]
[1731776270192,0.00010024,90640.0,90635.0,0.01034392]
[1731776270389,0.00010024,90640.0,90638.0,0.16027268]
[1731776270598,0.00010024,90640.0,90639.0,0.01034392]
[1731776271288,0.00010024,90640.0,90639.0,0.12067352]
[1731776272286,0.00010024,90640.0,90639.0,0.17581752]
[1731776273091,0.02206707,90652.0,90645.0,0.05514]
[1731776273287,0.055135,90654.0,90646.0,0.01034392]
[1731776273483,0.055135,90654.0,90647.0,0.01034392]
[1731776273684,0.055135,90654.0,90648.0,0.01034392]
[1731776273881,0.055135,90654.0,90649.0,0.01034392]
[1731776274087,0.055135,90654.0,90650.0,0.01034392]
[1731776274397,0.055135,90654.0,90651.0,0.01034392]
[1731776274592,0.055135,90654.0,90652.0,0.01034392]
[1731776274792,0.055135,90654.0,90653.0,0.01034392]
[1731776274996,0.055135,90654.0,90653.0,0.12065588]
[1731776275398,0.055135,90654.0,90653.0,0.01034392]
[1731776275599,0.055135,90654.0,90653.0,0.12065405]
[1731776277799,0.08724,90664.0,90653.0,0.12065405]
[1731776278001,0.055132,90659.0,90653.0,0.11031013]
[1731776278403,0.055132,90659.0,90652.0,0.3608]
[1731776278606,0.055132,90659.0,90654.0,0.11031013]
[1731776278901,0.055132,90659.0,90656.0,0.055134]
[1731776279100,0.02842005,90662.0,90656.0,0.055134]
[1731776279301,0.08724,90671.0,90657.0,0.01034063]
[1731776279504,0.055132,90659.0,90658.0,0.01034063]
[1731776279797,0.055132,90659.0,90658.0,0.12063799]
[1731776280192,0.055132,90659.0,90658.0,0.01034063]
[1731776280393,0.055132,90659.0,90658.0,0.12063799]
[1731776284707,0.02960756,90662.0,90658.0,0.12063799]
[1731776285014,0.055127,90668.0,90661.0,0.055131]
[1731776285202,0.02206161,90669.0,90662.0,0.01034074]
[1731776285401,0.055128,90666.0,90663.0,0.01034074]
[1731776285593,0.055128,90666.0,90661.0,0.055131]
[1731776285594,0.055128,90666.0,90664.0,0.01034074]
[1731776285799,0.055128,90666.0,90652.0,0.68897751]
[1731776285800,0.02206161,90669.0,90663.0,0.11029553]
[1731776285998,0.02206161,90669.0,90656.0,0.055134]
[1731776286206,0.05513,90663.0,90657.0,0.01034074]
[1731776286400,0.02206161,90669.0,90658.0,0.01034074]
[1731776286712,0.02932572,90671.0,90665.0,0.10512868]
[1731776286899,0.00165475,90673.0,90669.0,0.055125]
[1731776287096,0.00165475,90673.0,90670.0,0.01034035]
[1731776287295,0.00165475,90673.0,90671.0,0.06546535]
[1731776287597,0.00165475,90673.0,90672.0,0.01033995]
[1731776288117,0.00165475,90673.0,90672.0,0.12062758]
[1731776288814,0.00165475,90673.0,90672.0,0.17575158]
[1731776289105,0.00013355,90676.0,90672.0,0.12062758]
[1731776289300,0.00013355,90676.0,90675.0,0.055122]
[1731776289501,0.00013355,90676.0,90675.0,0.06546195]
[1731776290106,0.00013355,90676.0,90675.0,0.17574532]
[1731776290406,0.00013355,90676.0,90675.0,0.12062332]
[1731776291506,0.00013355,90676.0,90675.0,0.11028337]
[1731776291702,0.00013355,90676.0,90675.0,0.26291615]
[1731776291908,0.055109,90698.0,90675.0,0.20779383]
[1731776292113,0.055106,90702.0,90693.0,0.10512868]
[1731776292300,0.39027984,90703.0,90700.0,0.10512868]
[1731776292500,0.39027984,90703.0,90700.0,0.16023568]
[1731776292709,0.39027984,90703.0,90701.0,0.12058809]
[1731776292901,0.44538584,90703.0,90702.0,0.01033634]
[1731776293101,0.44538584,90703.0,90701.0,0.11025175]
[1731776293303,0.05511,90696.0,90688.0,0.055114]
[1731776293508,0.05511,90696.0,90689.0,0.06544945]
[1731776293701,0.055112,90692.0,90690.0,0.01033645]
[1731776294018,0.055112,90692.0,90691.0,0.01033645]
[1731776295002,0.055112,90692.0,90691.0,0.12060036]
[1731776297000,0.055112,90692.0,90691.0,0.01033645]
[1731776297202,0.055122,90676.0,90667.0,0.3608]
[1731776297405,0.055122,90676.0,90675.0,9.217e-05]
[1731776297606,0.055122,90676.0,90675.0,0.01043092]
[1731776297806,0.055122,90676.0,90675.0,0.12071429]
[1731776299600,0.055122,90676.0,90675.0,0.12071482]
[1731776301619,0.055122,90676.0,90675.0,0.11037554]
[1731776302627,0.08451102,90676.0,90675.0,9.217e-05]
[1731776308022,0.08451102,90676.0,90675.0,0.0104317]
[1731776309822,0.08451102,90676.0,90675.0,0.0655537]
[1731776310122,0.3608,90683.0,90682.0,0.055118]
[1731776310512,0.415917,90683.0,90682.0,0.06545708]
[1731776310712,0.415917,90683.0,90682.0,0.16540137]
[1731776311521,0.13192011,90694.0,90682.0,0.11028337]
[1731776311722,0.055112,90692.0,90689.0,0.055114]
[1731776311939,0.055112,90691.0,90690.0,0.0103382]
[1731776312228,0.055112,90691.0,90690.0,0.12061306]
[1731776312527,0.055112,90691.0,90690.0,0.0103382]
[1731776312830,0.055112,90691.0,90690.0,0.12061306]
[1731776313226,0.02205754,90693.0,90690.0,0.12061306]
[1731776313431,0.05511,90695.0,90692.0,0.055111]
[1731776313627,0.055111,90694.0,90693.0,0.0103382]
[1731776314126,0.055111,90694.0,90693.0,0.12060211]
[1731776314724,0.055109,90698.0,90694.0,0.05511]
[1731776315416,0.055109,90698.0,90695.0,0.11026148]
[1731776315620,0.055109,90698.0,90696.0,0.01033701]
[1731776315925,0.08696,90704.0,90699.0,0.055108]
[1731776315926,0.055105,90704.0,90699.0,0.055108]
[1731776316128,0.055105,90704.0,90700.0,0.01033701]
[1731776316428,0.055105,90704.0,90701.0,0.01033701]
[1731776316628,0.055105,90704.0,90702.0,0.01033701]
[1731776316827,0.055105,90704.0,90703.0,0.01033701]
[1731776317539,0.055105,90704.0,90703.0,0.12058816]
[1731776320124,0.0016544,90717.0,90703.0,0.21537983]
[1731776320337,0.055099,90714.0,90708.0,0.055102]
[1731776320633,0.0016544,90717.0,90703.0,0.21537983]
[1731776320634,0.055097,90716.0,90711.0,0.0551]
[1731776320826,0.055097,90716.0,90705.0,0.3608]
[1731776320827,0.055098,90715.0,90710.0,0.055101]
[1731776321019,0.0016544,90717.0,90711.0,0.06543465]
[1731776321328,0.0016544,90717.0,90712.0,0.01033465]
[1731776321634,0.0016544,90717.0,90716.0,0.055097]
[1731776322223,0.0016544,90717.0,90716.0,0.16533296]
[1731776323717,0.0016544,90717.0,90716.0,0.11023596]
[1731776324123,0.055097,90716.0,90713.0,0.00010408]
[1731776324429,0.055097,90716.0,90714.0,0.11023352]
[1731776324632,0.10512868,90715.0,90713.0,0.00010408]
[1731776324823,0.055098,90714.0,90713.0,0.00010408]
[1731776325032,0.0016544,90717.0,90714.0,0.11023535]
[1731776325336,0.0016544,90717.0,90713.0,0.00010408]
[1731776325337,0.0567514,90717.0,90713.0,0.00010408]
[1731776325526,0.0016544,90717.0,90713.0,0.00010408]
[1731776325830,0.055098,90715.0,90714.0,0.11023535]
[1731776326236,0.05504581,90715.0,90714.0,0.11023535]
[1731776331241,0.055098,90714.0,90713.0,0.00010408]
[1731776332239,0.746618,90714.0,90713.0,0.00010408]
[1731776332442,1.046618,90714.0,90699.0,0.0051]
[1731776332644,0.055108,90698.0,90689.0,0.421014]
[1731776332937,0.055108,90698.0,90689.0,0.415914]
[1731776333536,0.055108,90698.0,90697.0,0.00175489]
[1731776335430,0.16023668,90698.0,90697.0,0.00175489]
[1731776337247,0.16023668,90698.0,90697.0,0.00010112]
[1731776337953,0.49099668,90698.0,90697.0,0.00010112]
[1731776338258,0.49099668,90698.0,90680.0,0.0051]
[1731776338547,0.49099668,90698.0,90672.0,0.0051]
[1731776338548,0.055123,90674.0,90672.0,0.0051]
[1731776338738,0.055123,90674.0,90673.0,0.01033957]
[1731776339140,0.055123,90674.0,90673.0,0.12060652]
[1731776339539,0.055123,90674.0,90673.0,0.11026695]
[1731776339948,0.10512868,90680.0,90668.0,0.00165387]
[1731776339949,0.055126,90670.0,90668.0,0.00165387]
[1731776340154,0.055126,90670.0,90669.0,0.12062576]
[1731776345151,0.055126,90670.0,90669.0,0.1102858]
[1731776345660,0.055127,90668.0,90664.0,0.10512868]
[1731776345842,0.055127,90668.0,90665.0,0.12063076]
[1731776346151,0.3608,90674.0,90666.0,0.01034009]
[1731776346152,0.39048306,90674.0,90666.0,0.01034009]
[1731776346351,0.055123,90674.0,90673.0,0.10512868]
[1731776346757,0.055123,90674.0,90673.0,0.21541935]
[1731776348254,0.055123,90674.0,90673.0,0.11029067]
[1731776348553,0.38971905,90679.0,90666.0,0.10512868]
[1731776348760,0.055124,90672.0,90667.0,0.01033929]
[1731776348954,0.055124,90672.0,90668.0,0.01033929]
[1731776349153,0.055124,90672.0,90667.0,0.1654128]
[1731776349154,0.055124,90672.0,90669.0,0.01033929]
[1731776349459,0.055124,90672.0,90670.0,0.01033929]
[1731776349648,0.055124,90672.0,90671.0,0.01033929]
[1731776349857,0.055121,90677.0,90671.0,0.01033929]
[1731776350051,0.055121,90677.0,90672.0,0.055124]
[1731776350660,0.055122,90676.0,90672.0,0.055124]
[1731776350960,0.055122,90676.0,90673.0,0.11028884]
[1731776351549,0.02910002,90682.0,90673.0,0.11028884]
[1731776351750,0.055123,90674.0,90673.0,0.11028884]
[1731776351961,0.055123,90674.0,90668.0,0.3608]
[1731776352358,0.055123,90674.0,90669.0,0.11028458]
[1731776352969,0.10889754,90685.0,90671.0,0.055124]
[1731776352970,0.05512,90679.0,90671.0,0.055124]
[1731776353257,0.05512,90678.0,90671.0,0.055124]
[1731776353457,0.055121,90677.0,90671.0,0.055124]
[1731776353663,0.055121,90677.0,90672.0,0.11028823]
[1731776354065,0.05147712,90685.0,90672.0,0.11028823]
[1731776354268,0.055122,90676.0,90672.0,0.11028823]
[1731776354463,0.055122,90676.0,90673.0,0.01033871]
[1731776354761,0.055122,90676.0,90674.0,0.01033871]
[1731776354968,0.055122,90676.0,90671.0,0.055124]
[1731776355158,0.055122,90676.0,90673.0,0.11028458]
[1731776355354,0.055122,90676.0,90674.0,0.01033877]
[1731776355563,0.055122,90676.0,90675.0,0.01033877]
[1731776356267,0.055122,90676.0,90675.0,0.12062275]
[1731776357356,0.055122,90676.0,90675.0,0.11028398]
[1731776357761,0.055123,90674.0,90668.0,0.3608]
[1731776358168,0.10512868,90680.0,90669.0,0.12062234]
[1731776358358,0.055125,90670.0,90669.0,0.11028337]
[1731776358567,0.05513,90663.0,90660.0,0.3608]
[1731776358754,0.05513,90663.0,90661.0,0.12062313]
[1731776358959,0.05513,90663.0,90662.0,0.01033976]
[1731776359665,0.05513,90663.0,90662.0,0.12063043]
[1731776361371,0.05513,90663.0,90662.0,0.11029067]
[1731776361667,0.10512868,90673.0,90660.0,0.3608]
[1731776361865,0.05513,90662.0,90660.0,0.3608]
[1731776362065,0.05513,90662.0,90661.0,0.11029918]
[1731776362259,0.05513,90662.0,90661.0,0.1206396]
[1731776362464,0.05513,90662.0,90661.0,0.12063967]
[1731776363470,0.10512868,90673.0,90661.0,0.12063967]
[1731776363675,0.10512868,90673.0,90662.0,0.01034049]
[1731776363875,0.10512868,90673.0,90663.0,0.01034049]
[1731776364075,0.055124,90672.0,90664.0,0.01034049]
[1731776364374,0.055128,90665.0,90664.0,0.11029371]
[1731776364569,0.055128,90665.0,90664.0,0.01034055]
[1731776365171,0.13457833,90673.0,90660.0,0.3608]
[1731776365370,0.055131,90661.0,90660.0,0.3608]
[1731776365678,0.055131,90661.0,90660.0,0.48143748]
[1731776366082,0.055131,90661.0,90660.0,0.01034073]
[1731776366580,0.055131,90661.0,90645.0,0.0051]
[1731776366581,0.055139,90647.0,90645.0,0.0051]
[1731776366775,0.055139,90647.0,90646.0,0.01199692]
[1731776366776,0.52106768,90647.0,90646.0,0.01199692]
[1731776366967,0.52106768,90647.0,90646.0,0.0016542]
[1731776367283,0.52106768,90647.0,90646.0,0.12231601]
[1731776368172,0.52106768,90647.0,90646.0,0.11197285]
[1731776368380,0.415939,90647.0,90646.0,0.11197285]
[1731776370066,0.44516647,90647.0,90646.0,0.11197285]
[1731776371970,0.44516647,90647.0,90646.0,0.11031865]
[1731776372380,0.055141,90645.0,90636.0,0.055146]
[1731776372568,0.055141,90645.0,90637.0,0.11031865]
[1731776374181,0.055142,90643.0,90637.0,0.11031865]
[1731776374377,0.39058748,90647.0,90637.0,0.11031865]
[1731776374573,0.39002747,90647.0,90637.0,0.11031865]
[1731776374773,0.055145,90638.0,90633.0,0.1345134]
[1731776374972,0.055145,90638.0,90634.0,0.11038313]
[1731776375284,0.39002747,90647.0,90635.0,0.01034311]
[1731776375492,0.055145,90637.0,90636.0,0.01034311]
[1731776375982,0.055145,90637.0,90636.0,0.12067393]
[1731776376283,0.055145,90637.0,90636.0,0.11033082]
[1731776376670,0.055145,90637.0,90636.0,0.01034371]
[1731776377283,0.49515615,90647.0,90634.0,5.9e-05]
[1731776377284,0.055146,90636.0,90634.0,5.9e-05]
[1731776377486,0.055146,90636.0,90635.0,0.01034356]
[1731776377782,0.055146,90636.0,90635.0,0.11033082]
[1731776378171,0.055142,90642.0,90635.0,0.11033082]
[1731776378376,0.055142,90642.0,90638.0,0.055145]
[1731776378575,0.055142,90642.0,90635.0,0.11033082]
[1731776378878,0.055142,90642.0,90634.0,5.9e-05]
[1731776378879,0.055143,90641.0,90636.0,0.01034291]
[1731776379077,0.055143,90641.0,90637.0,0.01034291]
[1731776379276,0.39058748,90647.0,90634.0,5.9e-05]
[1731776379277,0.055144,90639.0,90638.0,0.01034291]
[1731776379681,0.055144,90639.0,90638.0,0.1206713]
[1731776379982,0.055144,90639.0,90638.0,0.01034291]
[1731776380488,0.055144,90639.0,90638.0,0.1206713]
[1731776381477,0.055144,90639.0,90638.0,0.11032839]
[1731776381882,0.055144,90639.0,90634.0,5.9e-05]
[1731776382086,0.055144,90639.0,90635.0,0.12067135]
[1731776382388,0.055144,90639.0,90636.0,0.01034296]
[1731776382594,0.055144,90639.0,90637.0,0.01034296]
[1731776382778,0.055144,90639.0,90634.0,5.9e-05]
[1731776382979,0.055144,90639.0,90638.0,0.110329]
[1731776383283,0.055144,90639.0,90634.0,5.9e-05]
[1731776383479,0.055144,90639.0,90636.0,0.110329]
[1731776383782,0.055144,90639.0,90634.0,5.9e-05]
[1731776384190,0.055144,90639.0,90636.0,0.1103296]
[1731776384391,0.055144,90639.0,90634.0,0.055206]
[1731776384590,0.055144,90639.0,90635.0,0.12067254]
[1731776384780,0.055144,90639.0,90635.0,0.1103296]
[1731776385279,0.39002747,90647.0,90635.0,0.1103296]
[1731776385481,0.055145,90639.0,90635.0,0.1103296]
[1731776386391,0.055145,90639.0,90636.0,0.01034327]
[1731776386591,0.055141,90644.0,90637.0,0.01034327]
[1731776386792,0.47678747,90647.0,90640.0,0.055143]
[1731776386793,0.055142,90643.0,90640.0,0.055143]
[1731776387089,0.055142,90643.0,90638.0,0.16546995]
[1731776387291,0.47738748,90647.0,90639.0,0.01034316]
[1731776387292,0.055143,90642.0,90639.0,0.01034316]
[1731776387481,0.47742747,90647.0,90634.0,5.9e-05]
[1731776387791,0.47678747,90647.0,90639.0,0.11032595]
[1731776388090,0.47678747,90647.0,90640.0,0.01034322]
[1731776388091,0.055143,90641.0,90640.0,0.01034322]
[1731776388994,0.05497426,90641.0,90640.0,0.12066917]
[1731776391380,0.36136001,90647.0,90640.0,0.45162917]
[1731776391585,0.415934,90655.0,90650.0,0.055137]
[1731776392085,0.055134,90655.0,90650.0,0.055137]
[1731776392297,0.44756,90664.0,90645.0,0.3608]
[1731776392298,0.055136,90652.0,90651.0,0.11031135]
[1731776392691,0.055138,90649.0,90645.0,0.3608]
[1731776392902,0.055134,90655.0,90651.0,0.11031135]
[1731776393206,0.055137,90651.0,90644.0,0.055141]
[1731776393387,0.055137,90651.0,90645.0,0.01034242]
[1731776393584,0.055137,90651.0,90646.0,0.01034242]
[1731776393787,0.055137,90651.0,90647.0,0.01034242]
[1731776393983,0.055137,90651.0,90648.0,0.01034242]
[1731776394188,0.055137,90651.0,90649.0,0.01034242]
[1731776394493,0.055137,90651.0,90650.0,0.01034242]
[1731776395197,0.055137,90651.0,90650.0,0.12065864]
[1731776395694,0.055137,90651.0,90650.0,0.44833216]
[1731776395892,0.055137,90651.0,90650.0,0.12065864]
[1731776396297,0.055137,90651.0,90650.0,0.44833216]
[1731776396594,0.055137,90651.0,90650.0,0.12065864]
[1731776396993,0.055137,90651.0,90650.0,0.01034242]
[1731776397292,0.05514,90645.0,90644.0,0.32767352]
[1731776397496,0.10512868,90645.0,90644.0,0.32767352]
[1731776397691,0.055141,90644.0,90643.0,0.11031378]
[1731776398091,0.10512868,90645.0,90635.0,0.44908742]
[1731776398300,0.10512868,90645.0,90643.0,0.11032108]
[1731776398497,0.10512868,90645.0,90638.0,0.32953095]
[1731776398692,0.10512868,90645.0,90639.0,0.01034358]
[1731776398897,0.055143,90642.0,90640.0,0.01034358]
[1731776399092,0.055143,90642.0,90639.0,0.38467495]